lending/lending_fUSD_20250621
["ID","MTS","AMOUNT","RATE_DAILY","PERIOD"]
[366815555,1750469456655,-490.0,0.0002712,4]
[366815556,1750469456664,-490.0,0.0002712,4]
[366815557,1750469456674,-586.57,0.0002712,4]
[366815558,1750469456684,-571.90003104,0.0002712,4]
[366815559,1750469456694,-1500.0,0.00027168,2]
[366815560,1750469456703,-300.82,0.00027258,2]
[366815561,1750469456713,-150.0,0.00027258,2]
[366815562,1750469456722,-455.32,0.00027258,2]
[366815563,1750469456746,-150.0,0.00027258,2]
[366815564,1750469456755,-150.0,0.00027258,2]
[366815565,1750469456765,-498.96,0.00027258,2]
[366815566,1750469456775,-150.0,0.00027258,2]
[366815567,1750469456785,-170.91,0.00027258,2]
[366815568,1750469456794,-170.91,0.00027258,2]
[366815569,1750469456804,-170.91,0.00027258,2]
[366815570,1750469456814,-151.10157197,0.00027296,2]
[366815571,1750469456824,-13482.81,0.000273,2]
[366815572,1750469456834,-1236.4532289,0.00027314,16]
[366815573,1750469456844,-168.0,0.0002734,2]
[366815574,1750469456854,-1088.08335414,0.00027386,2]
[366815575,1750469456866,-1136.91598583,0.00027386,2]
[366815576,1750469456876,-1037.41061114,0.00027386,2]
[366815577,1750469456885,-1095.91580029,0.00027386,2]
[366815578,1750469456894,-1122.55822368,0.00027386,2]
[366815579,1750469456906,-759.85360974,0.00027386,2]
[366815580,1750469456915,-4009.99489827,0.0002739,2]
[366815581,1750469456925,-3479.57544043,0.0002739,2]
[366815582,1750469456936,-490.0,0.00027393,4]
[366815583,1750469456945,-490.0,0.00027393,4]
[366815584,1750469456955,-490.0,0.00027393,4]
[366815585,1750469456964,-490.0,0.00027393,4]
[366815586,1750469456973,-490.0,0.00027393,4]
[366815587,1750469456982,-490.0,0.00027393,4]
[366815588,1750469456992,-490.0,0.00027393,4]
[366815589,1750469457001,-490.0,0.00027393,4]
[366815590,1750469457011,-490.0,0.00027393,4]
[366815591,1750469457022,-490.0,0.00027393,4]
[366815592,1750469457032,-490.0,0.00027393,4]
[366815593,1750469457041,-309.23,0.00027393,4]
[366815594,1750469457051,-490.0,0.00027393,4]
[366815595,1750469457061,-490.0,0.00027393,4]
[366815596,1750469457070,-490.0,0.00027393,4]
[366815597,1750469457080,-490.0,0.00027393,4]
[366815598,1750469457089,-251.72475345,0.00027393,4]
[366815599,1750469457099,-490.0,0.00027393,4]
[366815600,1750469457109,-490.0,0.00027393,4]
[366815601,1750469457118,-490.0,0.00027393,4]
[366815602,1750469457128,-812.69,0.00027393,4]
[366815603,1750469457138,-490.0,0.00027393,4]
[366815604,1750469457147,-490.0,0.00027393,4]
[366815605,1750469457157,-936.43,0.00027393,4]
[366815606,1750469457167,-490.0,0.00027393,4]
[366815607,1750469457182,-490.0,0.00027393,4]
[366815608,1750469457192,-543.41,0.00027393,4]
[366815609,1750469457203,-807.15,0.00027393,4]
[366815610,1750469457213,-2874.37,0.00027393,4]
[366815611,1750469457223,-747.94,0.00027393,4]
[366815612,1750469457234,-610.56133459,0.00027393,4]
[366815613,1750469457244,-490.0,0.00027393,4]
[366815614,1750469457254,-490.0,0.00027393,4]
[366815615,1750469457264,-490.0,0.00027393,4]
[366815616,1750469457275,-490.0,0.00027393,4]
[366815617,1750469457285,-490.0,0.00027393,4]
[366815618,1750469457296,-292.335542,0.00027393,4]
[366815619,1750469457309,-1437.46,0.00027393,4]
[366815620,1750469457319,-490.0,0.00027393,4]
[366815621,1750469457329,-490.0,0.00027393,4]
[366815622,1750469457340,-712.82,0.00027393,4]
[366815623,1750469457350,-490.0,0.00027393,4]
[366815624,1750469457362,-576.17,0.00027393,4]
[366815625,1750469457373,-526.92,0.00027393,4]
[366815626,1750469457383,-599.6174332,0.00027393,4]
[366815627,1750469457393,-490.0,0.00027393,4]
[366815628,1750469457404,-490.0,0.00027393,4]
[366815629,1750469457414,-490.0,0.00027393,4]
[366815630,1750469457424,-490.0,0.00027393,4]
[366815631,1750469457434,-490.0,0.00027393,4]
[366815632,1750469457445,-490.0,0.00027393,4]
[366815633,1750469457455,-490.0,0.00027393,4]
[366815634,1750469457465,-490.0,0.00027393,4]
[366815635,1750469457475,-591.78,0.00027393,4]
[366815636,1750469457486,-490.0,0.00027393,4]
[366815637,1750469457496,-490.0,0.00027393,4]
[366815638,1750469457507,-470.51705168,0.00027393,4]
[366815639,1750469457518,-601.42012983,0.00027393,4]
[366815640,1750469457528,-956.83,0.00027393,4]
[366815641,1750469457538,-575.79,0.00027393,4]
[366815642,1750469457549,-490.0,0.00027393,4]
[366815643,1750469457559,-490.0,0.00027393,4]
[366815644,1750469457569,-490.0,0.00027393,4]
[366815645,1750469457579,-490.0,0.00027393,4]
[366815646,1750469457591,-490.0,0.00027393,4]
[366815647,1750469457602,-490.0,0.00027393,4]
[366815648,1750469457612,-1272.16,0.00027393,2]
[366815649,1750469457627,-490.0,0.00027393,4]
[366815650,1750469457639,-490.0,0.00027393,4]
[366815651,1750469457649,-490.0,0.00027393,4]
[366815652,1750469457659,-521.34596174,0.00027393,4]
[366815653,1750469457670,-490.0,0.00027393,4]
[366815654,1750469457680,-490.0,0.00027393,4]
[366815655,1750469457692,-547.86,0.00027393,4]
[366815656,1750469457701,-490.0,0.00027393,4]
[366815657,1750469457711,-490.0,0.00027393,4]
[366815658,1750469457720,-490.0,0.00027393,4]
[366815659,1750469457732,-490.0,0.00027393,4]
[366815660,1750469457742,-778.02,0.00027393,4]
[366815661,1750469457752,-490.0,0.00027393,4]
[366815662,1750469457762,-429.34900785,0.00027393,4]
[366815663,1750469457772,-1680.82,0.00027393,4]
[366815664,1750469457782,-610.55,0.00027393,4]
[366815665,1750469457792,-490.0,0.00027393,4]
[366815666,1750469457802,-490.0,0.00027393,4]
[366815667,1750469457812,-490.0,0.00027393,4]
[366815668,1750469457822,-543.8,0.00027393,4]
[366815669,1750469457832,-490.0,0.00027393,4]
[366815670,1750469457842,-3805.85,0.00027393,4]
[366815671,1750469457852,-490.0,0.00027393,4]
[366815672,1750469457865,-621.07,0.00027393,2]
[366815673,1750469457876,-319.4054343,0.00027393,4]
[366815674,1750469457886,-490.0,0.00027393,4]
[366815675,1750469457895,-1068.62,0.00027393,4]
[366815676,1750469457905,-525.68,0.00027393,4]
[366815677,1750469457915,-490.0,0.00027393,4]
[366815678,1750469457926,-755.19,0.00027393,4]
[366815679,1750469457935,-490.0,0.00027393,4]
[366815680,1750469457945,-490.0,0.00027393,4]
[366815681,1750469457955,-490.0,0.00027393,4]
[366815682,1750469457965,-669.03,0.00027393,4]
[366815683,1750469457974,-490.0,0.00027394,4]
[366815684,1750469457984,-490.0,0.00027394,4]
[366815685,1750469457994,-490.0,0.00027394,4]
[366815686,1750469458004,-490.0,0.00027394,4]
[366815687,1750469458014,-490.0,0.00027394,4]
[366815688,1750469458026,-586.57,0.00027394,4]
[366815689,1750469458036,-288.02,0.00027396,2]
[366815690,1750469458045,-2571.82,0.00027397,2]
[366815691,1750469458055,-2571.82,0.00027397,2]
[366815692,1750469458065,-2571.82,0.00027397,2]
[366815693,1750469458075,-2571.82,0.00027397,2]
[366815694,1750469458091,-2571.82,0.00027397,2]
[366815695,1750469458101,-2571.82,0.00027397,2]
[366815696,1750469458111,-2571.82,0.00027397,2]
[366815697,1750469458121,-2571.82,0.00027397,2]
[366815698,1750469458132,-500.0,0.00027397,4]
[366815699,1750469458142,-9695.53,0.00027397,2]
[366815700,1750469458152,-300.0,0.00027397,2]
[366815701,1750469458163,-150.0,0.00027397,2]
[366815702,1750469458172,-700.0,0.00027397,2]
[366815703,1750469458183,-219.87933749,0.00027397,2]
[366815704,1750469458193,-178.32,0.00027397,80]
[366815705,1750469458203,-500.0,0.000274,2]
[366815706,1750469458213,-1200.0,0.000274,2]
[366815707,1750469458223,-650.0,0.000274,2]
[366815708,1750469458234,-500.0,0.00027424,4]
[366815709,1750469458244,-500.0,0.00027452,4]
[366815710,1750469458254,-500.0,0.00027479,4]
[366815711,1750469458264,-164.3,0.00027484,2]
[366815712,1750469458274,-155.9113264,0.00027486,2]
[366815713,1750469458284,-195.01071256,0.000275,2]
[366815714,1750469458294,-532.64039982,0.000275,2]
[366815715,1750469458305,-2500.0,0.000275,2]
[366815716,1750469458315,-500.0,0.00027507,4]
[366815717,1750469458324,-168.0,0.00027529,2]
[366815718,1750469458334,-500.0,0.00027534,4]
[366815719,1750469458344,-162.380719,0.00027554,2]
[366815720,1750469458354,-763.05923773,0.00027554,2]
[366815721,1750469458364,-500.0,0.00027561,4]
[366815722,1750469458374,-500.0,0.00027589,4]
[366815723,1750469458384,-21116.78939685,0.000276,7]
[366815724,1750469458665,-8048.27256411,0.000276,7]
[366815726,1750469651437,185.29,0.00013699,2]
[366815727,1750469651640,185.29,0.00020187,2]
[366815730,1750469718647,192.0,0.000247,120]
[366815732,1750469963454,156.26270317,0.0002,2]
[366815733,1750469973354,150.0,0.000221,2]
[366815734,1750470100487,250.0,0.00015,2]
[366815735,1750470101552,300.0,0.00017,2]
[366815736,1750470393205,524.0,0.000221,2]
[366815738,1750470603414,253.75,0.000221,2]
[366815740,1750470631744,-204.0,0.00024165,2]
[366815741,1750470631755,-165.59,0.00024453,2]
[366815742,1750470631765,-207.4,0.00024561,2]
[366815743,1750470631775,-273.01,0.00024561,2]
[366815744,1750470631787,-224.23621308,0.00024561,2]
[366815745,1750470631798,-984.48174603,0.00024575,2]
[366815746,1750470631810,-215.51825397,0.00024575,2]
[366815747,1750470631820,-670.48174603,0.00024576,2]
[366815748,1750470631842,-6674.44485719,0.00024576,2]
[366815749,1750470631851,-1000.0,0.00024666,2]
[366815750,1750470631861,-243.81,0.00024708,2]
[366815751,1750470631872,-691.9,0.00024734,2]
[366815752,1750470631882,-165.24,0.00024747,2]
[366815753,1750470631892,-203.54,0.00024747,2]
[366815754,1750470631902,-666.0,0.00024874,2]
[366815755,1750470631911,-1047.10544042,0.000249,12]
[366815756,1750470631921,-168.0,0.00024931,2]
[366815757,1750470631931,-193.52,0.00024931,2]
[366815758,1750470631940,-200.0,0.00024931,7]
[366815759,1750470631950,-238.78,0.00024934,2]
[366815760,1750470631960,-165.55,0.00025079,120]
[366815761,1750470631970,-150.99,0.00025201,2]
[366815762,1750470631980,-150.99,0.00025201,2]
[366815763,1750470631990,-168.0,0.00025228,2]
[366815764,1750470632001,-423.2365,0.00025376,2]
[366815765,1750470632012,-1047.1054403,0.00025383,13]
[366815766,1750470632022,-204.0,0.00025445,4]
[366815767,1750470632031,-490.0,0.00025475,4]
[366815768,1750470632041,-518.62563489,0.00025475,4]
[366815769,1750470632051,-371.42508745,0.00025475,4]
[366815770,1750470632061,-490.0,0.00025475,4]
[366815771,1750470632070,-509.71659151,0.00025475,4]
[366815772,1750470632080,-508.85840737,0.00025475,4]
[366815773,1750470632090,-490.0,0.00025475,4]
[366815775,1750470632100,-490.0,0.00025475,4]
[366815777,1750470632110,-504.30962767,0.00025475,4]
[366815779,1750470632120,-519.55957097,0.00025475,4]
[366815780,1750470632130,-490.0,0.00025475,4]
[366815781,1750470632140,-490.0,0.00025475,4]
[366815782,1750470632150,-506.5317579,0.00025475,4]
[366815783,1750470632159,-499.70125677,0.00025475,4]
[366815784,1750470632180,-516.03498866,0.00025475,4]
[366815785,1750470632192,-490.0,0.00025475,4]
[366815786,1750470632202,-490.0,0.00025475,4]
[366815787,1750470632212,-510.91683787,0.00025475,4]
[366815788,1750470632223,-508.17000277,0.00025475,4]
[366815789,1750470632233,-508.58563164,0.00025475,4]
[366815790,1750470632243,-490.0,0.00025475,4]
[366815791,1750470632253,-536.37973633,0.00025475,4]
[366815792,1750470632264,-490.0,0.00025475,4]
[366815793,1750470632274,-510.60981164,0.00025475,4]
[366815794,1750470632284,-512.62906696,0.00025475,4]
[366815795,1750470632294,-490.0,0.00025475,4]
[366815796,1750470632304,-504.13066619,0.00025475,4]
[366815797,1750470632316,-516.49797111,0.00025475,4]
[366815798,1750470632325,-514.37631191,0.00025475,4]
[366815799,1750470632336,-505.83790051,0.00025475,4]
[366815800,1750470632345,-510.93768894,0.00025475,4]
[366815802,1750470632355,-490.0,0.00025475,4]
[366815804,1750470632365,-500.24711317,0.00025475,4]
[366815806,1750470632375,-510.32852016,0.00025475,4]
[366815808,1750470632385,-490.0,0.00025475,4]
[366815810,1750470632395,-505.17433609,0.00025475,4]
[366815812,1750470632405,-460.28897116,0.00025475,4]
[366815814,1750470632415,-506.60899151,0.00025475,4]
[366815816,1750470632424,-490.0,0.00025749,4]
[366815818,1750470632435,-490.0,0.00025749,4]
[366815821,1750470632445,-602.18779912,0.00025749,4]
[366815823,1750470632456,-606.12064111,0.00025749,4]
[366815825,1750470632466,-513.33627517,0.00025749,4]
[366815826,1750470632476,-535.17312709,0.00025749,4]
[366815827,1750470632486,-490.0,0.00025749,4]
[366815828,1750470632497,-490.0,0.00025749,4]
[366815829,1750470632507,-523.83981635,0.00025749,4]
[366815830,1750470632517,-127.30777132,0.00025749,4]
[366815831,1750470632531,-417.31443204,0.00025749,4]
[366815832,1750470632541,-522.94697192,0.00025749,4]
[366815833,1750470632552,-490.0,0.00025749,4]
[366815834,1750470632562,-183.07753901,0.00025749,4]
[366815835,1750470632577,-151.0,0.00025846,2]
[366815836,1750470632588,-946.0,0.00025862,2]
[366815837,1750470632598,-3335.0,0.00025862,2]
[366815838,1750470632609,-806.0,0.00025862,2]
[366815841,1750470632624,-638.0,0.00025862,2]
[366815843,1750470632634,-1161.0,0.00025862,2]
[366815845,1750470632644,-559.0,0.00025862,2]
[366815847,1750470632654,-591.0,0.00025862,2]
[366815849,1750470632665,-932.724,0.00025862,2]
[366815851,1750470632674,-1278.0,0.00025862,2]
[366815853,1750470632685,-2005.0,0.00025862,2]
[366815855,1750470632695,-1676.0,0.00025862,2]
[366815857,1750470632707,-150.0,0.00025862,2]
[366815859,1750470632717,-7135.0,0.00025862,2]
[366815861,1750470632728,-150.0,0.00025862,2]
[366815863,1750470632738,-191.824,0.00025862,2]
[366815865,1750470632749,-150.312,0.00025862,2]
[366815867,1750470632759,-156.0,0.00025862,2]
[366815869,1750470632769,-193.125,0.00025862,2]
[366815871,1750470632780,-250.0,0.00025862,2]
[366815873,1750470632789,-855.0,0.00025862,2]
[366815875,1750470632800,-1047.1054403,0.00025866,14]
[366815877,1750470632810,-564.3629,0.00025923,2]
[366815879,1750470632820,-215.0738,0.0002593,2]
[366815881,1750470632830,-834.11677829,0.0002595,2]
[366815883,1750470632840,-1145.95363569,0.00026,2]
[366815886,1750470632859,-854.04636431,0.00026,2]
[366815888,1750470632869,-834.11677829,0.00026,7]
[366815890,1750470632880,-276.35,0.00026022,2]
[366815892,1750470632890,-135.6585238,0.00026023,4]
[366815895,1750470632902,-354.3414762,0.00026023,4]
[366815897,1750470632912,-490.0,0.00026023,4]
[366815899,1750470632926,-490.0,0.00026023,4]
[366815901,1750470632937,-490.0,0.00026023,4]
[366815903,1750470632947,-490.0,0.00026023,4]
[366815905,1750470632957,-168.0,0.0002613,2]
[366815907,1750470632967,-800.0,0.00026168,7]
[366815909,1750470632978,-1286.05290855,0.00026196,2]
[366815911,1750470632989,-523.82,0.00026296,2]
[366815913,1750470632999,-500.0,0.00026296,2]
[366815915,1750470633009,-490.0,0.00026296,4]
[366815917,1750470633019,-490.0,0.00026296,4]
[366815919,1750470633030,-534.3741394,0.00026296,4]
[366815921,1750470633040,-519.46176528,0.00026296,4]
[366815924,1750470633050,-520.08679705,0.00026296,4]
[366815926,1750470633065,-490.0,0.00026296,4]
[366815928,1750470633075,-514.87223636,0.00026296,4]
[366815930,1750470633086,-509.65195877,0.00026296,4]
[366815932,1750470633098,-533.17752646,0.00026296,4]
[366815934,1750470633109,-490.0,0.00026296,4]
[366815936,1750470633119,-26.16119192,0.00026296,4]
[366815938,1750470633131,-463.83880808,0.00026296,4]
[366815940,1750470633141,-205.01204598,0.00026296,4]
[366815942,1750470633154,-284.98795402,0.00026296,4]
[366815944,1750470633165,-490.0,0.00026296,4]
[366815946,1750470633175,-143.87272137,0.00026296,4]
[366816393,1750470637838,-1149.0830946,0.0002577,2]
[366816394,1750470637849,-1033.04522382,0.0002577,2]
[366816395,1750470637860,-4095.0,0.00025862,2]
[366816396,1750470637870,-346.12727863,0.00026296,4]
[366816397,1750470637879,-520.71639881,0.00026296,4]
[366816398,1750470637890,-490.0,0.00026296,4]
[366816399,1750470637900,-518.76828829,0.00026296,4]
[366816400,1750470637910,-546.49757142,0.00026296,4]
[366816401,1750470637920,-524.90575318,0.00026296,4]
[366816402,1750470637930,-589.63024338,0.00026296,4]
[366816403,1750470637941,-490.0,0.00026296,4]
[366816404,1750470637953,-490.0,0.00026296,4]
[366816405,1750470637962,-531.13126359,0.00026296,4]
[366816406,1750470637973,-332.00964104,0.00026296,4]
[366816407,1750470637982,-531.85536793,0.00026296,4]
[366816408,1750470637992,-519.32601907,0.00026296,4]
[366816409,1750470638002,-490.0,0.00026296,4]
[366816411,1750470638013,-518.76425829,0.00026296,4]
[366816412,1750470638023,-534.05895602,0.00026296,4]
[366816413,1750470638034,-490.0,0.00026296,4]
[366816414,1750470638044,-531.16692673,0.00026296,4]
[366816415,1750470638055,-531.62139223,0.00026296,4]
[366816416,1750470638066,-524.01593251,0.00026296,4]
[366816417,1750470638076,-524.08259628,0.00026296,4]
[366816418,1750470638086,-490.0,0.00026296,4]
[366816419,1750470638096,-490.0,0.00026296,4]
[366816420,1750470638106,-490.0,0.00026296,4]
[366816421,1750470638115,-490.0,0.00026296,4]
[366816422,1750470638125,-243.85312953,0.00026296,4]
[366816423,1750470638135,-490.0,0.00026296,4]
[366816424,1750470638144,-643.59,0.00026296,4]
[366816425,1750470638154,-517.10032506,0.00026296,4]
[366816426,1750470638164,-490.0,0.00026296,4]
[366816427,1750470638174,-490.0,0.00026296,4]
[366816428,1750470638183,-490.0,0.00026296,4]
[366816429,1750470638194,-490.0,0.00026296,4]
[366816430,1750470638205,-490.0,0.00026296,4]
[366816431,1750470638214,-490.0,0.00026296,4]
[366816432,1750470638224,-490.0,0.00026296,4]
[366816433,1750470638234,-490.0,0.00026296,4]
[366816434,1750470638245,-490.0,0.00026296,4]
[366816435,1750470638255,-490.0,0.00026296,4]
[366816436,1750470638265,-490.0,0.00026296,4]
[366816438,1750470638274,-490.0,0.00026296,4]
[366816440,1750470638284,-509.23241896,0.00026296,4]
[366816442,1750470638294,-490.0,0.00026296,4]
[366816444,1750470638304,-490.0,0.00026296,4]
[366816446,1750470638316,-576.58,0.00026296,4]
[366816448,1750470638326,-356.50431374,0.00026296,4]
[366816449,1750470638337,-539.11539103,0.00026296,4]
[366816450,1750470638347,-531.27135975,0.00026296,4]
[366816451,1750470638358,-546.67373116,0.00026296,4]
[366816452,1750470638368,-174.70191308,0.00026296,4]
[366816453,1750470638378,-524.55551306,0.00026296,4]
[366816454,1750470638387,-490.0,0.00026296,4]
[366816455,1750470638397,-490.0,0.00026296,4]
[366816456,1750470638406,-507.52719332,0.00026296,4]
[366816457,1750470638417,-514.76825972,0.00026296,4]
[366816458,1750470638427,-490.0,0.00026296,4]
[366816459,1750470638437,-490.0,0.00026296,4]
[366816460,1750470638447,-1201.28,0.00026296,4]
[366816461,1750470638456,-359.10846326,0.00026296,4]
[366816462,1750470638466,-490.0,0.00026296,4]
[366816463,1750470638477,-520.97425044,0.00026296,4]
[366816464,1750470638487,-598.33,0.00026296,4]
[366816465,1750470638497,-722.59,0.00026296,4]
[366816466,1750470638507,-520.9609113,0.00026296,4]
[366816467,1750470638517,-490.0,0.00026296,4]
[366816468,1750470638527,-490.0,0.00026296,4]
[366816469,1750470638537,-212.31965508,0.00026296,4]
[366816470,1750470638548,-490.0,0.00026296,4]
[366816471,1750470638558,-490.0,0.00026296,4]
[366816472,1750470638568,-490.0,0.00026296,4]
[366816473,1750470638578,-490.0,0.00026296,4]
[366816474,1750470638589,-490.0,0.00026296,4]
[366816475,1750470638599,-490.0,0.00026296,4]
[366816476,1750470638609,-490.0,0.00026296,4]
[366816477,1750470638619,-490.0,0.00026296,4]
[366816478,1750470638629,-490.0,0.00026296,4]
[366816479,1750470638639,-524.61887016,0.00026296,4]
[366816480,1750470638650,-616.8279993,0.00026296,4]
[366816481,1750470638660,-490.0,0.00026296,4]
[366816482,1750470638670,-490.0,0.00026296,4]
[366816483,1750470638680,-490.0,0.00026296,4]
[366816484,1750470638691,-490.0,0.00026296,4]
[366816485,1750470638702,-490.0,0.00026296,4]
[366816486,1750470638711,-514.84194225,0.00026296,4]
[366816487,1750470638721,-490.0,0.00026296,4]
[366816488,1750470638731,-490.0,0.00026296,4]
[366816489,1750470638742,-490.0,0.00026296,4]
[366816490,1750470638752,-490.0,0.00026296,4]
[366816491,1750470638762,-577.59842235,0.00026296,4]
[366816492,1750470638772,-541.39507028,0.00026296,4]
[366816493,1750470638782,-490.0,0.00026296,4]
[366816494,1750470638792,-506.02717088,0.00026296,4]
[366816495,1750470638802,-490.0,0.00026296,4]
[366816496,1750470638812,-490.0,0.00026296,4]
[366816497,1750470638822,-490.0,0.00026296,4]
[366816498,1750470638831,-490.0,0.00026296,4]
[366816499,1750470638842,-490.0,0.00026296,4]
[366816500,1750470638852,-516.80234459,0.00026296,4]
[366816501,1750470638862,-490.0,0.00026296,4]
[366816502,1750470638872,-490.0,0.00026296,4]
[366816503,1750470638881,-511.76583508,0.00026296,4]
[366816504,1750470638891,-490.0,0.00026296,4]
[366816505,1750470638900,-519.19885781,0.00026296,4]
[366816506,1750470638910,-480.75336067,0.00026296,4]
[366816507,1750470638919,-524.05579732,0.00026296,4]
[366816508,1750470638929,-490.0,0.00026296,4]
[366816509,1750470638941,-490.0,0.00026296,4]
[366816510,1750470638951,-490.0,0.00026296,4]
[366816511,1750470638960,-514.52463622,0.00026296,4]
[366816512,1750470638970,-490.0,0.00026296,4]
[366816513,1750470638979,-490.0,0.00026297,4]
[366816514,1750470638989,-490.0,0.00026297,4]
[366816515,1750470638999,-490.0,0.00026297,4]
[366816516,1750470639008,-490.0,0.00026297,4]
[366816517,1750470639018,-490.0,0.00026297,4]
[366816518,1750470639027,-1047.1054403,0.00026348,14]
[366816519,1750470639037,-1561.01,0.000264,2]
[366816520,1750470639046,-184.38635022,0.00026438,30]
[366816521,1750470639055,-171.52363058,0.00026438,30]
[366816522,1750470639065,-558.6462,0.0002647,3]
[366816523,1750470639075,-1940.19764253,0.00026497,20]
[366816524,1750470639085,-173.20546587,0.00026497,4]
[366816525,1750470639096,-490.0,0.00026497,4]
[366816526,1750470639106,-490.0,0.00026497,4]
[366816527,1750470639116,-490.0,0.00026497,4]
[366816528,1750470639126,-490.0,0.00026497,4]
[366816529,1750470639137,-490.0,0.00026497,4]
[366816530,1750470639147,-490.0,0.00026497,4]
[366816531,1750470639158,-490.0,0.00026497,4]
[366816532,1750470639168,-534.8,0.00026497,4]
[366816533,1750470639177,-490.0,0.00026497,4]
[366816534,1750470639187,-546.40892205,0.00026497,4]
[366816535,1750470639394,-490.0,0.00026497,4]
[366816536,1750470639406,-438.67928631,0.00026497,4]
[366816537,1750470639418,-490.0,0.00026497,4]
[366816538,1750470639428,-490.0,0.00026497,4]
[366816539,1750470639438,-490.0,0.00026497,4]
[366816540,1750470639448,-490.0,0.00026497,4]
[366816541,1750470639458,-490.0,0.00026497,4]
[366816542,1750470639468,-490.0,0.00026497,4]
[366816543,1750470639478,-490.0,0.00026497,4]
[366816544,1750470639488,-606.03119043,0.00026498,4]
[366816545,1750470639498,-261.29459978,0.00026498,4]
[366816546,1750470639508,-514.99478379,0.00026498,4]
[366816547,1750470639518,-514.87379098,0.00026498,4]
[366816548,1750470639528,-514.35159033,0.00026498,4]
[366816549,1750470639538,-490.0,0.00026498,4]
[366816550,1750470639548,-505.75379928,0.00026498,4]
[366816551,1750470639559,-514.03596567,0.00026498,4]
[366816552,1750470639569,-490.0,0.00026498,4]
[366816553,1750470639581,-490.0,0.00026498,4]
[366816554,1750470639591,-227.97621309,0.00026498,4]
[366816555,1750470639601,-490.0,0.00026498,4]
[366816556,1750470639611,-193.5714646,0.00026498,4]
[366816557,1750470639621,-490.0,0.00026498,4]
[366816558,1750470639631,-2407.38,0.00026498,4]
[366816559,1750470639641,-490.0,0.00026498,4]
[366816560,1750470639651,-490.0,0.00026498,4]
[366816561,1750470639661,-490.0,0.00026498,4]
[366816562,1750470639671,-490.0,0.00026498,4]
[366816563,1750470639681,-579.12805068,0.00026498,4]
[366816565,1750470639692,-490.0,0.00026498,4]
[366816566,1750470639702,-208.2680761,0.00026498,4]
[366816567,1750470639711,-490.0,0.00026498,4]
[366816568,1750470639721,-490.0,0.00026498,4]
[366816569,1750470639731,-490.0,0.00026498,4]
[366816570,1750470639740,-530.1180776,0.00026498,4]
[366816571,1750470639750,-490.0,0.00026498,4]
[366816572,1750470639761,-1065.21,0.00026498,2]
[366816573,1750470639771,-499.92452753,0.00026498,4]
[366816574,1750470639781,-410.22393001,0.00026498,4]
[366816575,1750470639791,-490.0,0.00026498,4]
[366816576,1750470639800,-543.18832964,0.00026498,4]
[366816577,1750470639810,-490.0,0.00026498,4]
[366816578,1750470639820,-490.0,0.00026498,4]
[366816580,1750470639830,-490.0,0.00026498,4]
[366816582,1750470639841,-153.04416304,0.00026498,4]
[366816584,1750470639852,-490.0,0.00026498,4]
[366816586,1750470639862,-250.65199165,0.00026498,4]
[366816589,1750470639878,-239.34800835,0.00026498,4]
[366816590,1750470639888,-490.0,0.00026498,4]
[366816591,1750470639899,-490.0,0.00026498,4]
[366816592,1750470639910,-576.82123601,0.00026498,4]